fUST/lending_fUST_20240831
["ID","MTS","AMOUNT","RATE_DAILY","PERIOD"]
[336735934,1725093042708,-501.14961915,0.00032876,2]
[336735935,1725093042718,-500.0,0.00032876,31]
[336735936,1725093042729,-560.70320413,0.00032876,31]
[336735937,1725093042738,-500.0,0.00032876,31]
[336735938,1725093042748,-503.59344362,0.00032876,31]
[336735939,1725093042757,-500.0,0.00032876,31]
[336735940,1725093042768,-502.23823438,0.00032876,31]
[336735942,1725093042778,-502.47297147,0.00032876,31]
[336735943,1725093042787,-500.0,0.00032876,31]
[336735944,1725093042796,-500.0,0.00032876,31]
[336735945,1725093042805,-500.0,0.00032876,31]
[336735946,1725093042814,-108.33161046,0.00032876,31]
[336735947,1725093042841,-391.66838954,0.00032876,31]
[336735948,1725093042850,-524.4757226,0.00032876,31]
[336735949,1725093042863,-8.72156797,0.00032876,31]
[336735950,1725093042873,-500.0,0.00032876,31]
[336735951,1725093042882,-502.66559894,0.00032876,31]
[336735952,1725093042893,-500.0,0.00032876,31]
[336735953,1725093042903,-500.0,0.00032876,31]
[336735954,1725093042913,-500.0,0.00032876,31]
[336735955,1725093042923,-500.0,0.00032876,31]
[336735956,1725093042937,-500.0,0.00032876,2]
[336735957,1725093042948,-500.0,0.00032876,31]
[336735958,1725093042959,-322.97858467,0.00032876,31]
[336735959,1725093043193,-177.02141533,0.00032876,31]
[336735960,1725093043203,-500.0,0.00032876,31]
[336735961,1725093043213,-500.0,0.00032876,31]
[336735962,1725093043222,-500.0,0.00032876,31]
[336735963,1725093043231,-500.0,0.00032876,31]
[336735964,1725093043241,-500.0,0.00032876,31]
[336735965,1725093043250,-500.0,0.00032876,31]
[336735966,1725093043260,-500.0,0.00032876,31]
[336735967,1725093043268,-500.0,0.00032876,31]
[336735968,1725093043278,-500.0,0.00032876,31]
[336735970,1725093043288,-500.0,0.00032876,31]
[336735972,1725093043297,-500.0,0.00032876,31]
[336735974,1725093043307,-500.0,0.00032876,31]
[336735976,1725093043317,-500.0,0.00032876,31]
[336735978,1725093043327,-500.0,0.00032876,31]
[336735979,1725093043337,-500.0,0.00032876,31]
[336735980,1725093043346,-500.0,0.00032876,31]
[336735981,1725093043356,-396.03233862,0.00032876,31]
[336735982,1725093043365,-703.76,0.00032876,31]
[336735983,1725093043375,-500.0,0.00032876,31]
[336735984,1725093043385,-500.0,0.00032876,31]
[336735985,1725093043396,-500.0,0.00032876,31]
[336735986,1725093043407,-502.096028,0.00032876,31]
[336735987,1725093043418,-187.16940028,0.00032876,7]
[336735995,1725093046118,-179.49349272,0.00032876,7]
[336735996,1725093046128,-94.50650728,0.00032876,7]
[336735999,1725093373318,209.774064,0.00014247,2]
[336736005,1725094036142,-151.0,0.0003,120]
[336736006,1725094036164,-254.254729,0.00030439,2]
[336736007,1725094036186,-200.0,0.00030602,15]
[336736008,1725094036208,-400.0,0.00030668,2]
[336736009,1725094036230,-3919.18922808,0.00030669,2]
[336736010,1725094041133,-1444.74041309,0.00030669,2]
[336736011,1725094043117,-501.07656831,0.00030669,2]
[336736012,1725094044103,-1265.06716299,0.00030669,2]
[336736013,1725094047112,-894.27414007,0.000299,2]
[336736036,1725094232112,-300.0,0.00030668,2]
[336736038,1725094232122,-320.0,0.00030668,2]
[336736040,1725094232131,-2950.12439564,0.00030669,2]
[336736042,1725094232143,-3905.00690329,0.00030669,2]
[336736045,1725094232152,-212.6936355,0.0003067,2]
[336736046,1725094232162,-250.0,0.00031015,2]
[336736048,1725094232171,-250.0,0.000311,2]
[336736050,1725094232180,-250.0,0.00031185,2]
[336736052,1725094232189,-250.0,0.0003127,2]
[336736054,1725094232199,-250.0,0.00031355,2]
[336736056,1725094232208,-43.63565597,0.0003144,2]
[336736436,1725094238292,-206.36434403,0.0003144,2]
[336736437,1725094238302,-250.0,0.00031525,2]
[336736438,1725094238312,-250.0,0.0003161,2]
[336736439,1725094238323,-250.0,0.00031695,2]
[336736440,1725094238333,-250.0,0.0003178,2]
[336736441,1725094238344,-160.337178,0.00031781,2]
[336736442,1725094238355,-52.91480707,0.00031866,2]
[336736443,1725094238468,-197.08519293,0.00031866,2]
[336736444,1725094238477,-250.0,0.00031951,2]
[336736445,1725094238487,-100.07524675,0.00032,120]
[336736456,1725094240302,-50.92475325,0.00032,120]
[336736457,1725094240312,-250.0,0.00032036,2]
[336736458,1725094240322,-250.0,0.00032121,2]
[336736459,1725094240332,-250.0,0.00032206,2]
[336736460,1725094240341,-250.0,0.00032291,2]
[336736461,1725094240351,-250.0,0.00032376,2]
[336736462,1725094240361,-250.0,0.00032461,2]
[336736463,1725094240371,-151.0,0.00032468,7]
[336736464,1725094240380,-250.0,0.00032546,2]
[336736465,1725094240390,-250.0,0.00032631,2]
[336736466,1725094240399,-699.23687577,0.00032761,2]
[336736467,1725094240408,-851.22027109,0.00032761,2]
[336736468,1725094240418,-7807.95913555,0.0003279,4]
[336736469,1725094240428,-500.0,0.00032799,2]
[336736470,1725094240437,-436.79773,0.00032799,2]
[336736471,1725094240447,-665.78241316,0.000328,5]
[336736472,1725094240456,-300.464878,0.000328,16]
[336736473,1725094240465,-93766.05690141,0.000328,30]
[336736492,1725094243246,-393.9945873,0.000328,30]
[336736493,1725094243329,-15.12676704,0.000328,30]
[336736496,1725094246219,-16.44001341,0.0003279,3]
[336736515,1725094500490,187.510361,0.00014247,2]
[336738343,1725095233137,-157.352988,0.00031072,2]
[336738345,1725095233161,-200.0,0.000312,120]
[336738347,1725095233183,-157.352988,0.00031233,2]
[336738348,1725095233209,-178.069418,0.00031252,2]
[336738350,1725095233234,-163.75542073,0.00031252,2]
[336738606,1725095243095,-288.71413527,0.00031252,2]
[336738607,1725095243117,-157.352988,0.00031395,2]
[336738609,1725095243138,-157.352988,0.00031557,2]
[336738610,1725095243158,-452.469556,0.00031643,2]
[336738612,1725095243180,-157.352988,0.00031719,2]
[336738614,1725095243200,-172.93212,0.00031781,2]
[336738615,1725095243221,-157.352988,0.00031881,2]
[336738617,1725095243246,-388.85417732,0.00032033,2]
[336738693,1725095246127,-63.61537868,0.00032033,2]
[336738694,1725095246149,-157.352988,0.00032043,2]
[336738696,1725095246171,-157.352988,0.00032205,2]
[336738697,1725095246192,-157.352988,0.00032367,2]
[336738699,1725095246213,-452.469556,0.00032424,2]
[336738700,1725095246240,-157.352988,0.00032529,2]
[336738702,1725095246263,-408.80316157,0.0003261,2]
[336738831,1725095252106,-591.19683843,0.0003261,2]
[336738832,1725095252127,-1000.0,0.00032625,2]
[336738834,1725095252148,-400.0,0.00032632,2]
[336738835,1725095252169,-191.10680945,0.00032632,2]
[336741078,1725095440516,-157.352988,0.00031548,2]
[336741079,1725095440526,-164.285514,0.00031781,2]
[336741081,1725095440536,-1000.0,0.00032635,2]
[336741082,1725095440545,-476.89457471,0.0003265,2]
[336741083,1725095440558,-523.10542529,0.0003265,2]
[336741084,1725095440568,-396.0,0.00032689,2]
[336741085,1725095440577,-1478.25794192,0.0003269,2]
[336741087,1725095440587,-687.00793976,0.0003269,2]
[336741088,1725095440597,-687.00793975,0.00032693,2]
[336741089,1725095440607,-687.00793975,0.00032695,2]
[336741090,1725095440616,-311.62851794,0.00032697,2]
[336741092,1725095440629,-32.62154167,0.00032697,2]
[336741093,1725095440639,-687.00793975,0.00032698,2]
[336741094,1725095440649,-1998.27564571,0.000327,2]
[336741095,1725095440658,-687.00793975,0.000327,2]
[336741097,1725095440673,-811.28454784,0.00032706,2]
[336741098,1725095440687,-2000.0,0.0003275,6]
[336741099,1725095440697,-2000.0,0.0003276,8]
[336741100,1725095440707,-2000.0,0.0003277,9]
[336741102,1725095440717,-602.22,0.0003278,3]
[336741103,1725095440727,-2000.0,0.0003278,10]
[336741104,1725095440736,-2507.03387757,0.0003279,5]
[336741105,1725095440746,-192.5,0.0003279,120]
[336741106,1725095440756,-103071.568836,0.0003279,4]
[336741108,1725095440766,-2000.0,0.0003279,12]
[336741109,1725095440775,-500.0,0.00032799,2]
[336741110,1725095440785,-500.0,0.00032799,2]
[336741111,1725095440794,-539.22083674,0.00032799,2]
[336741113,1725095440804,-294747.18553721,0.000328,30]
[336741114,1725095440814,-300.464878,0.000328,16]
[336741115,1725095440824,-598.0,0.000328,6]
[336741116,1725095440833,-2000.0,0.000328,7]
[336741118,1725095440843,-2000.0,0.0003281,14]
[336741119,1725095440853,-178.069418,0.00032815,2]
[336741120,1725095440863,-452.469556,0.00032815,2]
[336741121,1725095440872,-2000.0,0.0003282,16]
[336741122,1725095440881,-2000.0,0.0003284,18]
[336741124,1725095440891,-2000.0,0.0003286,19]
[336741125,1725095440901,-150.092,0.00032861,2]
[336741126,1725095440911,-150.16,0.00032861,2]
[336741127,1725095440920,-150.0,0.00032861,2]
[336741129,1725095440930,-150.0,0.00032861,2]
[336741130,1725095440940,-522.0,0.00032861,2]
[336741131,1725095440950,-20614.3137671,0.00032865,4]
[336741132,1725095440959,-863.90451942,0.00032865,5]
[336741134,1725095440969,-103071.568836,0.00032866,4]
[336741135,1725095440978,-2000.0,0.0003287,20]
[336741136,1725095440987,-500.0,0.00032873,4]
[336741137,1725095440997,-241.627,0.00032873,5]
[336741138,1725095441006,-150.01,0.00032875,2]
[336741140,1725095441017,-2768.45154231,0.00032875,2]
[336741141,1725095441027,-525.12148761,0.00032875,31]
[336741142,1725095441036,-500.59999882,0.00032876,2]
[336741143,1725095441045,-500.0,0.00032876,31]
[336741144,1725095441056,-500.0,0.00032876,31]
[336741146,1725095441066,-500.0,0.00032876,31]
[336741147,1725095441075,-500.0,0.00032876,31]
[336741148,1725095441085,-556.51046696,0.00032876,31]
[336741149,1725095441095,-500.0,0.00032876,31]
[336741151,1725095441104,-500.0,0.00032876,31]
[336741152,1725095441114,-500.0,0.00032876,31]
[336741153,1725095441124,-165.79316252,0.00032876,31]
[336741154,1725095441133,-500.0,0.00032876,31]
[336741156,1725095441143,-503.50625666,0.00032876,31]
[336741157,1725095441152,-631.33814205,0.00032876,31]
[336741158,1725095441162,-500.93726923,0.00032876,31]
[336741159,1725095441172,-500.0,0.00032876,31]
[336741160,1725095441182,-500.0,0.00032876,31]
[336741162,1725095441191,-500.0,0.00032876,31]
[336741163,1725095441200,-500.0,0.00032876,31]
[336741164,1725095441210,-500.0,0.00032876,31]
[336741165,1725095441219,-500.0,0.00032876,31]
[336741167,1725095441230,-500.0,0.00032876,31]
[336741168,1725095441239,-500.0,0.00032876,31]
[336741169,1725095441249,-458.13945284,0.00032876,31]
[336741170,1725095441259,-500.0,0.00032876,31]
[336741171,1725095441272,-503.56032446,0.00032876,31]
[336741173,1725095441282,-500.0,0.00032876,31]
[336741174,1725095441293,-500.0,0.00032876,31]
[336741175,1725095441307,-501.87905117,0.00032876,31]
[336741177,1725095441317,-308.87016453,0.00032876,31]
[336741178,1725095441327,-500.0,0.00032876,31]
[336741179,1725095441337,-500.0,0.00032876,31]
[336741180,1725095441348,-500.0,0.00032876,31]
[336741182,1725095441359,-500.0,0.00032876,31]
[336741183,1725095441368,-500.0,0.00032876,31]
[336741184,1725095441377,-1000.0,0.00032876,2]
[336741185,1725095441386,-500.0,0.00032876,30]
[336741186,1725095441396,-621.68692903,0.00032876,31]
[336741188,1725095441407,-500.0,0.00032876,31]
[336741189,1725095441418,-500.0,0.00032876,31]
[336741190,1725095441429,-507.92766186,0.00032876,31]
[336741191,1725095441439,-500.0,0.00032876,31]
[336741193,1725095441450,-500.0,0.00032876,31]
[336741194,1725095441459,-151.064568,0.00032876,7]
[336741195,1725095441469,-500.0,0.00032876,31]
[336741197,1725095441479,-411.67279813,0.00032876,31]
[336741198,1725095441500,-500.0,0.00032876,31]
[336741199,1725095441517,-500.0,0.00032876,7]
[336741201,1725095441533,-500.0,0.00032876,31]
[336741202,1725095441548,-501.16698063,0.00032876,31]
[336741203,1725095441560,-500.0,0.00032876,31]
[336741205,1725095441572,-500.0,0.00032876,31]
[336741206,1725095441587,-501.02960701,0.00032876,31]
[336741207,1725095441600,-500.0,0.00032876,31]
[336741208,1725095441613,-500.0,0.00032876,31]
[336741210,1725095441627,-500.0,0.00032876,31]
[336741211,1725095441641,-501.96052252,0.00032876,31]
[336741212,1725095441654,-501.4462656,0.00032876,31]
[336741214,1725095441668,-196.03494753,0.00032876,31]
[336741215,1725095441683,-500.82752019,0.00032876,31]
[336741216,1725095441696,-500.0,0.00032876,31]
[336741218,1725095441708,-501.2485411,0.00032876,31]
[336741219,1725095441722,-500.0,0.00032876,31]
[336741220,1725095441740,-500.0,0.00032876,31]
[336741222,1725095441754,-500.0,0.00032876,31]
[336741223,1725095441768,-500.90628712,0.00032876,31]
[336741224,1725095441780,-500.0,0.00032876,31]
[336741226,1725095441793,-500.0,0.00032876,31]
[336741227,1725095441804,-550.52401466,0.00032876,31]
[336741228,1725095441814,-503.11100654,0.00032876,31]
[336741229,1725095441828,-500.0,0.00032876,31]
[336741231,1725095441840,-503.45903833,0.00032876,31]
[336741232,1725095441852,-500.0,0.00032876,31]
[336741233,1725095441864,-501.03735528,0.00032876,31]
[336741234,1725095441877,-500.0,0.00032876,31]
[336741236,1725095441888,-500.0,0.00032876,31]
[336741237,1725095441902,-504.1003215,0.00032876,31]
[336741238,1725095441916,-500.0,0.00032876,31]
[336741240,1725095441929,-502.16733986,0.00032876,31]
[336741241,1725095441944,-500.39524024,0.00032876,31]
[336741242,1725095441955,-500.0,0.00032876,31]
[336741243,1725095441966,-500.0,0.00032876,31]
[336741245,1725095441979,-500.0,0.00032876,31]
[336741246,1725095441991,-504.39484508,0.00032876,31]
[336741247,1725095442004,-500.92369958,0.00032876,31]
[336741248,1725095442016,-500.0,0.00032876,31]
[336741250,1725095442031,-500.0,0.00032876,31]
[336741251,1725095442042,-500.0,0.00032876,31]
[336741252,1725095442053,-500.0,0.00032876,31]
[336741254,1725095442067,-500.0,0.00032876,31]
[336741255,1725095442079,-923.55,0.00032876,31]
[336741256,1725095442092,-501.22274735,0.00032876,31]
[336741257,1725095442105,-384.17763786,0.00032876,31]
[336741354,1725095446387,-373.6,0.00032875,2]
[336741356,1725095446446,-1327.76017751,0.00032875,2]
[336741931,1725095473608,187.510361,0.00014247,2]
[336746307,1725096428154,-1000.0,0.00024,31]
[336746308,1725096428175,-300.0,0.00024999,2]
[336746309,1725096428198,-274.14529739,0.00025,30]
[336746310,1725096431233,-325.85470261,0.00025,30]
[336746311,1725096431255,-800.0,0.00025,30]
[336746312,1725096431279,-550.0,0.00025,30]
[336746313,1725096431300,-650.0,0.00025,30]
[336746314,1725096431322,-850.0,0.00025,30]
[336746315,1725096431343,-387.33851508,0.00025,30]
[336746316,1725096434098,-62.66148492,0.00025,30]
[336746317,1725096434255,-547.07046584,0.00025,30]
[336746318,1725096434277,-300.0,0.00027499,2]
[336746319,1725096434299,-635.03141097,0.00029543,2]
[336746320,1725096452099,-556.31502151,0.00029543,2]
[336746326,1725096546127,-5302.55416351,0.00018,2]
[336746327,1725096546149,-522.58506727,0.00019452,2]
[336746328,1725096550107,-605.11684136,0.00019452,2]
[336746329,1725096550127,-666.02068768,0.0002,2]
[336746330,1725096550148,-1761.584754,0.00023,2]
[336746331,1725096550169,-3006.89467342,0.00029543,2]
[336746340,1725096612134,159.0,0.00027,2]
[336746389,1725096638840,-250.0000087,0.00030225,2]
[336746390,1725096638851,-157.634743,0.00031252,2]
[336746391,1725096638862,-157.634743,0.00031773,2]
[336746392,1725096638871,-164.285514,0.00031781,2]
[336746393,1725096638881,-600.0,0.00032026,82]
[336746394,1725096638891,-522.0,0.00032278,2]
[336746395,1725096638902,-157.634743,0.00032294,2]
[336746396,1725096638911,-1293.47569918,0.00032632,2]
[336746397,1725096638920,-43656.323448,0.000327,2]
[336746398,1725096638930,-15093.46502095,0.00032776,120]
[336746399,1725096638940,-300.464878,0.000328,16]
[336746400,1725096638949,-598.0,0.000328,6]
[336746401,1725096638959,-157.634743,0.00032815,2]
[336746402,1725096638969,-2000.0,0.0003282,5]
[336746403,1725096638978,-2000.0,0.0003283,6]
[336746404,1725096638989,-2000.0,0.0003284,7]
[336746405,1725096638998,-622.3,0.00032846,3]
[336746406,1725096639008,-518.58,0.00032846,3]
[336746407,1725096639018,-432.15,0.00032846,3]
[336746408,1725096639028,-2000.0,0.0003285,8]
[336746409,1725096639042,-61842.9413013,0.00032856,4]
[336746410,1725096639054,-2000.0,0.0003286,9]
[336746411,1725096639064,-500.0,0.00032865,2]
[336746412,1725096639074,-577.45458572,0.00032865,2]
[336746413,1725096639086,-15460.7353253,0.00032865,4]
[336746414,1725096639096,-10017.42495719,0.00032866,4]
[336746441,1725096640684,-129129.19297081,0.00032866,4]
[336746442,1725096640694,-3252.39565255,0.00032869,2]
[336746445,1725096640704,-2000.0,0.0003287,20]
[336746446,1725096640713,-159.8179189,0.00032873,5]
[336746449,1725096640723,-162.02696556,0.00032873,5]
[336746451,1725096640733,-500.0,0.00032873,5]
[336746452,1725096640743,-160.5174148,0.00032873,5]
[336746454,1725096640753,-161.0,0.00032873,5]
[336746456,1725096640763,-158.5152449,0.00032873,5]
[336746458,1725096640772,-500.0,0.00032873,5]
[336746460,1725096640782,-158.51668475,0.00032873,5]
[336746462,1725096640791,-251.627,0.00032873,5]
[336746464,1725096640800,-158.5,0.00032873,5]
[336746466,1725096640810,-200.01788982,0.00032873,5]
[336746468,1725096640820,-160.2,0.00032873,5]
[336746470,1725096640829,-150.4907273,0.00032875,2]
[336746472,1725096640839,-2343.11149793,0.00032875,2]
[336746474,1725096640848,-525.12148761,0.00032875,31]
[336746476,1725096640857,-863.90451942,0.00032876,5]
[336746478,1725096640867,-2625.41539035,0.00032876,5]
[336746480,1725096640877,-500.0,0.00032876,2]
[336746482,1725096640886,-500.59999882,0.00032876,2]
[336746484,1725096640895,-500.0,0.00032876,31]
[336746486,1725096640906,-510.12494628,0.00032876,31]
[336746488,1725096640918,-392.78205919,0.00032876,31]
[336746491,1725096640930,-550.52401466,0.00032876,31]
[336746493,1725096640941,-500.0,0.00032876,31]
[336746495,1725096640951,-500.0,0.00032876,31]
[336746497,1725096640961,-501.82677298,0.00032876,31]
[336746499,1725096640971,-500.0,0.00032876,31]
[336746501,1725096640980,-501.22274735,0.00032876,31]
[336746503,1725096640991,-500.0,0.00032876,31]
[336746505,1725096641000,-502.39452672,0.00032876,31]
[336746507,1725096641011,-500.0,0.00032876,31]
[336746509,1725096641022,-500.0,0.00032876,7]
[336746511,1725096641032,-500.0,0.00032876,31]
[336746513,1725096641042,-500.0,0.00032876,31]
[336746515,1725096641051,-500.0,0.00032876,31]
[336746517,1725096641061,-501.00225855,0.00032876,31]
[336746519,1725096641070,-500.0,0.00032876,31]
[336746521,1725096641080,-500.69386133,0.00032876,31]
[336746523,1725096641090,-500.44070853,0.00032876,31]
[336746525,1725096641100,-500.0,0.00032876,31]
[336746528,1725096641110,-500.0,0.00032876,31]
[336746530,1725096641120,-1362.22,0.00032876,31]
[336746532,1725096641130,-500.0,0.00032876,31]
[336746534,1725096641140,-501.18159797,0.00032876,31]
[336746536,1725096641151,-500.0,0.00032876,31]
[336746538,1725096641163,-500.0,0.00032876,31]
[336746540,1725096641173,-500.79294642,0.00032876,31]
[336746542,1725096641183,-500.0,0.00032876,31]
[336746544,1725096641192,-500.0,0.00032876,31]
[336746546,1725096641202,-501.46295446,0.00032876,31]
[336746548,1725096641216,-500.0,0.00032876,31]
[336746550,1725096641226,-500.61524814,0.00032876,31]
[336746552,1725096641237,-327.7884406,0.00032876,31]
[336746554,1725096641247,-501.75641076,0.00032876,31]
[336746556,1725096641257,-553.941254,0.00032876,31]
[336746558,1725096641266,-500.0,0.00032876,31]
[336746560,1725096641276,-500.62705185,0.00032876,31]
[336746562,1725096641285,-501.51919353,0.00032876,31]
[336746565,1725096641295,-500.9626219,0.00032876,31]
[336746566,1725096641305,-501.24855819,0.00032876,31]
[336746568,1725096641315,-502.29438989,0.00032876,31]
[336746570,1725096641324,-498.06877309,0.00032876,31]
[336746572,1725096641334,-500.30232048,0.00032876,31]
[336746574,1725096641344,-500.0,0.00032876,30]
[336746576,1725096641353,-150.1486285,0.00032876,31]
[336746578,1725096641363,-501.4640467,0.00032876,31]
[336746580,1725096641373,-500.0,0.00032876,31]
[336746582,1725096641382,-500.0,0.00032876,31]
[336746584,1725096641391,-500.0,0.00032876,31]
[336746586,1725096641400,-500.0,0.00032876,31]
[336746588,1725096641410,-503.7350934,0.00032876,31]
[336746590,1725096641420,-501.93581551,0.00032876,31]
[336746592,1725096641431,-501.64390914,0.00032876,31]
[336746594,1725096641442,-500.0,0.00032876,31]
[336746597,1725096641453,-504.08713484,0.00032876,31]
[336746599,1725096641464,-500.94050722,0.00032876,31]
[336746601,1725096641473,-502.05434387,0.00032876,31]
[336746603,1725096641482,-369.15524801,0.00032876,31]
[336746605,1725096641492,-500.0,0.00032876,31]
[336746607,1725096641501,-500.0,0.00032876,31]
[336746609,1725096641511,-513.99536721,0.00032876,31]
[336746611,1725096641521,-501.54448539,0.00032876,31]
[336746613,1725096641531,-543.86740698,0.00032876,31]
[336746627,1725096641655,-502.32048746,0.00032876,31]
[336746630,1725096641664,-511.80236016,0.00032876,31]
[336746632,1725096641674,-500.79057838,0.00032876,31]
[336746634,1725096641683,-500.0,0.00032876,31]
[336746636,1725096641692,-406.78677295,0.00032876,31]
[336746638,1725096641702,-500.0,0.00032876,31]
[336746640,1725096641711,-502.80087498,0.00032876,31]
[336746642,1725096641721,-507.32932034,0.00032876,31]
[336746644,1725096641733,-500.0,0.00032876,31]
[336746646,1725096641742,-500.0,0.00032876,31]
[336746648,1725096641752,-500.0,0.00032876,31]
[336746650,1725096641762,-502.7847201,0.00032876,31]
[336746652,1725096641771,-501.02960701,0.00032876,31]
[336746655,1725096641782,-500.0,0.00032876,31]
[336746657,1725096641792,-501.41418267,0.00032876,31]
[336746659,1725096641801,-502.38551424,0.00032876,31]
[336746661,1725096641810,-501.88878411,0.00032876,31]
[336746663,1725096641820,-500.0,0.00032876,31]
[336746665,1725096641832,-500.0,0.00032876,31]
[336746667,1725096641844,-500.0,0.00032876,31]
[336746670,1725096641856,-505.53090761,0.00032876,31]
[336746672,1725096641865,-502.44220485,0.00032876,31]
[336746674,1725096641874,-502.44984807,0.00032876,31]
[336746676,1725096641883,-500.0,0.00032876,31]
[336746678,1725096641893,-410.32999859,0.00032876,31]
[336746681,1725096641915,-93.48580477,0.00032876,31]
[336746683,1725096641926,-500.0,0.00032876,31]
[336746686,1725096641937,-501.30504697,0.00032876,31]
[336746688,1725096641948,-508.85314353,0.00032876,31]
[336746690,1725096641959,-396.34274572,0.00032876,31]
[336746770,1725096646777,-150.0,0.00032278,2]
[336746771,1725096646787,-150.01,0.00032875,2]
[336746772,1725096646797,-103.65725428,0.00032876,31]
[336746773,1725096646808,-575.37480007,0.00032876,31]
[336746774,1725096646818,-500.0,0.00032876,31]
[336746775,1725096646830,-500.0,0.00032876,31]
[336746776,1725096646841,-500.0,0.00032876,31]
[336746777,1725096646852,-196.03494753,0.00032876,31]
[336746778,1725096646863,-68.71990125,0.00032876,31]
[336751692,1725097559147,-250.0,0.00030467,2]
[336751693,1725097559173,-2871.91479702,0.00030909,2]
[336752161,1725097625106,-506.60041363,0.00030909,2]
[336752162,1725097625141,-167.60453345,0.00030909,2]
[336752163,1725097625174,-187.0488814,0.00030937,2]
[336752164,1725097625203,-202.740487,0.00031252,2]
[336752165,1725097625229,-334.360351,0.00031252,2]
[336752166,1725097625256,-334.360351,0.00031643,2]
[336752167,1725097625284,-160.252318,0.00031781,2]
[336752168,1725097625312,-334.360351,0.00032033,2]
[336752169,1725097625338,-583.02853311,0.00032288,120]
[336752170,1725097625359,-334.360351,0.00032424,2]
[336752171,1725097625381,-1470.19634764,0.00032627,2]
[336752172,1725097633098,-1293.03678286,0.00032627,2]
[336752173,1725097635109,-489.16252205,0.00032627,2]
[336752174,1725097635129,-1414.01837947,0.00032776,2]
[336752212,1725097831850,-1004.25000015,0.00030906,2]
[336752272,1725097838012,-118.88039246,0.00030906,2]
[336752273,1725097838081,-346.87942189,0.00030906,2]
[336752294,1725097842826,-1740.8743299,0.00030906,2]
[336752295,1725097842836,-2963.1123576,0.00031139,2]
[336752296,1725097842845,-1131.7912368,0.00032766,2]
[336752297,1725097842854,-3144.06421259,0.000328,2]
[336752298,1725097842864,-334.360351,0.00032815,2]
[336752299,1725097842874,-150.0,0.00032866,2]
[336752300,1725097842883,-522.0,0.00032866,2]
[336752301,1725097842892,-150.092,0.00032866,2]
[336752302,1725097842902,-150.16,0.00032866,2]
[336752303,1725097842911,-150.0,0.00032866,2]
[336752304,1725097842920,-49727.77570998,0.00032866,4]
[336752358,1725097845918,-583.05905574,0.00032866,4]
[336752359,1725097845930,-265.95,0.00032866,4]
[336752809,1725098098761,165.7859101,0.00014247,2]
[336752817,1725098458134,738.20096853,0.0001,2]
[336752819,1725098765021,204.392559,0.00014247,2]
[336752821,1725098965155,-300.0,0.00019935,2]
[336752822,1725098965176,-3835.14635747,0.00019936,2]
[336752851,1725099038235,-300.0,0.00019935,2]
[336752853,1725099038246,-300.0,0.00019935,2]
[336752856,1725099038256,-6149.56032313,0.00019936,2]
[336752858,1725099038266,-1670.16115179,0.00019936,2]
[336752864,1725099038310,-3329.83884821,0.00019936,2]
[336752866,1725099038320,-158.51668475,0.0002,2]
[336752868,1725099038330,-200.01788982,0.0002,2]
[336752870,1725099038339,-251.627,0.0002,2]
[336752872,1725099038349,-160.2,0.0002,2]
[336752874,1725099038359,-158.51723913,0.0002,2]
[336752876,1725099038368,-162.02696556,0.0002,2]
[336752878,1725099038378,-251.0,0.00020573,2]
[336752880,1725099038390,-204.392559,0.00020707,2]
[336752883,1725099038400,-181.9195043,0.00021145,2]
[336752885,1725099038409,-160.5174148,0.0002115,2]
[336752887,1725099038419,-161.0,0.0002115,2]
[336752889,1725099038429,-500.0,0.0002115,2]